fUSD/lending_fUSD_20260224
["ID","MTS","AMOUNT","RATE_DAILY","PERIOD"]
[406527329,1771913432376,-500.0,0.00011562,2]
[406527330,1771913432386,-151.0,0.00011562,2]
[406527331,1771913432395,-500.0,0.00011562,2]
[406527332,1771913432404,-151.0,0.00011562,2]
[406527333,1771913432413,-500.0,0.00011562,2]
[406527334,1771913432422,-151.0,0.00011562,2]
[406527335,1771913432431,-500.0,0.00011562,2]
[406527336,1771913432440,-151.0,0.00011562,2]
[406527337,1771913432450,-151.0,0.00011562,2]
[406527338,1771913432459,-151.0,0.00011562,2]
[406527339,1771913432468,-151.0,0.00011562,2]
[406527340,1771913432477,-151.0,0.00011562,2]
[406527341,1771913432486,-151.0,0.00011562,2]
[406527342,1771913432496,-151.0,0.00011562,2]
[406527343,1771913432505,-151.0,0.00011562,2]
[406527344,1771913432514,-151.0,0.00011562,2]
[406527345,1771913432523,-151.0,0.00011562,2]
[406527346,1771913432533,-151.0,0.00011562,2]
[406527347,1771913432542,-151.0,0.00011562,2]
[406527348,1771913432552,-151.0,0.00011562,2]
[406527349,1771913432561,-151.0,0.00011562,2]
[406527350,1771913432571,-151.0,0.00011562,2]
[406527351,1771913432580,-151.0,0.00011562,2]
[406527352,1771913432590,-151.0,0.00011562,2]
[406527353,1771913432599,-151.0,0.00011562,2]
[406527354,1771913432608,-151.0,0.00011562,2]
[406527355,1771913432617,-151.0,0.00011562,2]
[406527356,1771913432627,-151.0,0.00011562,2]
[406527357,1771913432636,-151.0,0.00011562,2]
[406527358,1771913432645,-250.0,0.00011563,2]
[406527359,1771913432655,-256.55943822,0.00011566,2]
[406527360,1771913432663,-500.0,0.00011568,2]
[406527361,1771913432673,-9999.99,0.00011568,2]
[406527362,1771913432682,-7141.19,0.00011568,2]
[406527363,1771913432691,-14047.33,0.00011568,2]
[406527364,1771913432701,-9999.99,0.00011568,2]
[406527365,1771913432710,-299.99,0.00011568,2]
[406527366,1771913432719,-9999.99,0.00011568,2]
[406527367,1771913432729,-300.0,0.00011568,2]
[406527368,1771913432738,-29145.35,0.00011568,2]
[406527369,1771913432747,-3571.95,0.00011568,2]
[406527370,1771913432756,-2986.76,0.00011568,2]
[406527371,1771913432766,-232107.77,0.00011568,2]
[406527372,1771913432775,-5919.05,0.00011568,2]
[406527373,1771913432785,-349.89,0.00011568,2]
[406527374,1771913432795,-999.99,0.00011568,2]
[406527375,1771913432804,-499.99,0.00011568,2]
[406527376,1771913432813,-3709.03,0.00011568,2]
[406527377,1771913432822,-1474.34,0.00011568,2]
[406527378,1771913432832,-150.99,0.00011568,2]
[406527379,1771913432841,-311.71,0.00011568,2]
[406527380,1771913432851,-9999.99,0.00011568,2]
[406527381,1771913432860,-9999.99,0.00011568,2]
[406527382,1771913432869,-150.99,0.00011568,2]
[406527383,1771913432879,-1543.16,0.00011568,2]
[406527384,1771913432888,-916.35022247,0.00011569,2]
[406527385,1771913432898,-195.69351822,0.00011569,2]
[406527386,1771913432907,-151.78898783,0.00011569,2]
[406527387,1771913432917,-1205.9102,0.0001157,2]
[406527388,1771913432927,-194.0,0.00011644,2]
[406527389,1771913432936,-5997.0022,0.00011644,2]
[406527390,1771913432946,-1000.0,0.0001167,2]
[406527391,1771913432955,-200.0,0.00011699,2]
[406527392,1771913432964,-1852.42,0.00011699,2]
[406527393,1771913432974,-229.83419776,0.00011725,2]
[406527394,1771913432984,-150.0,0.00011782,2]
[406527395,1771913432992,-500.0,0.00011842,2]
[406527396,1771913433002,-198.0,0.0001186,2]
[406527397,1771913433011,-123892.78778558,0.00011913,2]
[406527398,1771913433023,-8088.04483693,0.00011913,2]
[406527399,1771913433034,-993.486,0.00011913,2]
[406527403,1771913438122,-88923.75161295,0.00011913,2]
[406527404,1771913438132,-166.66,0.00011928,2]
[406527405,1771913438142,-294.0,0.0001193,2]
[406527406,1771913438151,-242.0,0.00011954,2]
[406527407,1771913438161,-547.0,0.00011985,2]
[406527408,1771913438170,-985.0,0.00012,2]
[406527409,1771913438180,-900.0,0.00012009,2]
[406527410,1771913438190,-976.0,0.00012024,2]
[406527411,1771913438200,-1166.0,0.00012033,2]
[406527412,1771913438210,-1811.0,0.00012048,2]
[406527413,1771913438219,-1100.0,0.00012057,2]
[406527414,1771913438228,-1567.0,0.00012072,2]
[406527415,1771913438238,-1906.0,0.00012081,2]
[406527416,1771913438252,-423.0,0.00012096,2]
[406527417,1771913438265,-1498.0,0.00012105,2]
[406527418,1771913438274,-500.0,0.00012116,2]
[406527419,1771913438286,-1617.0,0.0001212,2]
[406527420,1771913438297,-22385.93454073,0.00012183,2]
[406527421,1771913438308,-27555.96599931,0.00012183,2]
[406527422,1771913438321,-166.66,0.00012309,2]
[406527423,1771913438333,-320.9753419,0.00012357,2]
[406527424,1771913438342,-1151.19706606,0.00012387,2]
[406527425,1771913438352,-500.0,0.0001239,2]
[406527426,1771913438363,-2877.42,0.00012446,2]
[406527427,1771913438373,-1385.38515629,0.00012488,2]
[406527428,1771913438382,-255.0,0.00012624,2]
[406527430,1771913438391,-1088.18469571,0.00012633,2]
[406527431,1771913438400,-325.14,0.00012652,2]
[406527433,1771913438409,-500.0,0.00012664,2]
[406527435,1771913438419,-166.66,0.0001269,2]
[406527437,1771913438428,-327.0,0.00012692,2]
[406527439,1771913438437,-420.0,0.00012692,2]
[406527441,1771913438446,-193.0,0.00012701,2]
[406527443,1771913438456,-300.0,0.00012701,2]
[406527445,1771913438465,-1861.96997506,0.00012701,2]
[406527447,1771913438474,-1680.0,0.00012712,2]
[406527449,1771913438483,-250.0,0.00012713,2]
[406527451,1771913438492,-22385.93454073,0.00012897,2]
[406527453,1771913438501,-27555.96599931,0.00012897,2]
[406527455,1771913438510,-500.0,0.00012938,2]
[406527457,1771913438520,-166.66,0.00013071,2]
[406527458,1771913438530,-500.0,0.00013073,2]
[406527459,1771913438539,-500.0,0.00013073,2]
[406527460,1771913438548,-500.0,0.00013073,2]
[406527461,1771913438557,-500.0,0.00013073,2]
[406527462,1771913438567,-500.0,0.00013073,2]
[406527463,1771913438576,-500.0,0.00013073,2]
[406527464,1771913438586,-166.97672521,0.00013073,2]
[406527465,1771913438596,-500.0,0.00013073,2]
[406527466,1771913438606,-500.0,0.00013073,2]
[406527467,1771913438838,-165.36252658,0.00013073,2]
[406527468,1771913438848,-500.0,0.00013073,2]
[406527469,1771913438859,-500.0,0.00013073,2]
[406527470,1771913438868,-500.0,0.00013073,2]
[406527471,1771913438877,-500.0,0.00013073,2]
[406527472,1771913438886,-164.7333528,0.00013073,2]
[406527473,1771913438896,-500.0,0.00013073,2]
[406527474,1771913438905,-500.0,0.00013073,2]
[406527475,1771913438914,-500.0,0.00013073,2]
[406527476,1771913438924,-239.96280814,0.00013073,2]
[406527477,1771913438934,-500.0,0.00013073,2]
[406527478,1771913438943,-500.34349631,0.00013073,2]
[406527479,1771913438952,-500.0,0.00013073,2]
[406527480,1771913438961,-502.31192663,0.00013073,2]
[406527481,1771913438971,-500.0,0.00013073,2]
[406527482,1771913438981,-500.0,0.00013073,2]
[406527483,1771913438990,-500.0,0.00013073,2]
[406527484,1771913439000,-504.35563358,0.00013073,2]
[406527485,1771913439009,-500.78031298,0.00013073,2]
[406527486,1771913439019,-500.60830622,0.00013073,2]
[406527487,1771913439028,-500.45758158,0.00013073,2]
[406527488,1771913439037,-500.20340125,0.00013073,2]
[406527489,1771913439047,-502.15928887,0.00013073,2]
[406527490,1771913439056,-384.53358442,0.00013073,2]
[406527491,1771913439065,-500.0,0.00013073,2]
[406527492,1771913439075,-500.0,0.00013073,2]
[406527493,1771913439084,-500.64938591,0.00013073,2]
[406527494,1771913439093,-500.0,0.0001312,2]
[406527495,1771913439104,-500.0,0.0001312,2]
[406527496,1771913439114,-500.0,0.0001312,2]
[406527497,1771913439123,-500.0,0.0001312,2]
[406527498,1771913439133,-226.07766539,0.0001312,2]
[406527499,1771913439143,-500.0,0.0001312,2]
[406527500,1771913439152,-500.0,0.0001312,2]
[406527501,1771913439162,-500.0,0.0001312,2]
[406527502,1771913439171,-500.0,0.0001312,2]
[406527503,1771913439180,-500.0,0.0001312,2]
[406527504,1771913439189,-500.0,0.0001312,2]
[406527505,1771913439198,-173.75497189,0.0001312,2]
[406527506,1771913439207,-500.0,0.0001312,2]
[406527507,1771913439217,-500.0,0.0001312,2]
[406527508,1771913439227,-500.0,0.0001312,2]
[406527509,1771913439236,-500.0,0.0001312,2]
[406527510,1771913439245,-500.0,0.0001312,2]
[406527511,1771913439254,-500.0,0.0001312,2]
[406527512,1771913439263,-500.0,0.0001312,2]
[406527513,1771913439273,-150.21976951,0.0001312,2]
[406527514,1771913439283,-500.0,0.0001312,2]
[406527515,1771913439296,-500.0,0.0001312,2]
[406527516,1771913439306,-500.0,0.0001312,2]
[406527517,1771913439316,-500.0,0.0001312,2]
[406527518,1771913439327,-500.54627495,0.0001312,2]
[406527519,1771913439336,-500.0,0.0001312,2]
[406527520,1771913439345,-500.0,0.0001312,2]
[406527521,1771913439354,-500.0,0.0001312,2]
[406527522,1771913439365,-500.0,0.0001312,2]
[406527523,1771913439374,-500.0,0.0001312,2]
[406527524,1771913439384,-500.0,0.0001312,2]
[406527525,1771913439394,-500.0,0.0001312,2]
[406527526,1771913439403,-500.0,0.0001312,2]
[406527527,1771913439412,-500.0,0.0001312,2]
[406527528,1771913439422,-500.0,0.0001312,2]
[406527529,1771913439432,-500.0,0.0001312,2]
[406527530,1771913439441,-670.0,0.0001312,2]
[406527531,1771913439451,-500.0,0.0001312,2]
[406527532,1771913439460,-500.0,0.0001312,2]
[406527533,1771913439469,-500.0,0.0001312,2]
[406527534,1771913439478,-500.0,0.0001312,2]
[406527535,1771913439487,-500.0,0.0001312,2]
[406527536,1771913439497,-500.0,0.0001312,2]
[406527537,1771913439506,-500.0,0.0001312,2]
[406527538,1771913439514,-500.0,0.0001312,2]
[406527539,1771913439524,-500.0,0.0001312,2]
[406527540,1771913439533,-500.0,0.0001312,2]
[406527541,1771913439542,-500.0,0.0001312,2]
[406527542,1771913439551,-500.0,0.0001312,2]
[406527543,1771913439563,-500.0,0.0001312,2]
[406527544,1771913439576,-500.0,0.0001312,2]
[406527545,1771913439589,-500.98925879,0.0001312,2]
[406527546,1771913439598,-497.95349587,0.0001312,2]
[406527547,1771913439607,-500.0,0.0001312,2]
[406527548,1771913439617,-500.0,0.0001312,2]
[406527549,1771913439626,-500.0,0.0001312,2]
[406527550,1771913439636,-500.0,0.0001312,2]
[406527551,1771913439645,-500.0,0.0001312,2]
[406527552,1771913439654,-624.27476501,0.00013188,2]
[406527553,1771913439663,-624.27476501,0.00013188,2]
[406527554,1771913439672,-624.27476501,0.00013188,2]
[406527555,1771913439682,-624.27476501,0.00013188,2]
[406527556,1771913439691,-624.27476501,0.00013188,2]
[406527557,1771913439700,-624.27476501,0.00013188,2]
[406527558,1771913439709,-624.27476501,0.00013188,2]
[406527559,1771913439718,-624.27476501,0.00013188,2]
[406527560,1771913439728,-624.27476501,0.00013188,2]
[406527561,1771913439737,-624.27476501,0.00013188,2]
[406527562,1771913439748,-624.27476501,0.00013188,2]
[406527563,1771913439758,-624.27476501,0.00013188,2]
[406527564,1771913439768,-624.27476501,0.00013188,2]
[406527565,1771913439777,-624.27476501,0.00013188,2]
[406527566,1771913439787,-624.27476501,0.00013188,2]
[406527567,1771913439797,-624.27476501,0.00013188,2]
[406527568,1771913439806,-624.27476501,0.00013188,2]
[406527569,1771913439816,-624.27476501,0.00013188,2]
[406527570,1771913439825,-624.27476501,0.00013188,2]
[406527571,1771913439839,-624.27476501,0.00013188,2]
[406527572,1771913439849,-624.27476501,0.00013188,2]
[406527573,1771913439858,-624.27476501,0.00013188,2]
[406527574,1771913439868,-624.27476501,0.00013188,2]
[406527575,1771913439877,-624.27476501,0.00013188,2]
[406527576,1771913439887,-624.27476501,0.00013188,2]
[406527577,1771913439897,-624.27476501,0.00013188,2]
[406527578,1771913439906,-624.27476501,0.00013188,2]
[406527579,1771913439916,-624.27476501,0.00013188,2]
[406527580,1771913439926,-624.27476501,0.00013188,2]
[406527581,1771913439935,-624.27476501,0.00013188,2]
[406527582,1771913439944,-624.27476501,0.00013188,2]
[406527583,1771913439954,-624.27476501,0.00013188,2]
[406527584,1771913439963,-624.27476501,0.00013188,2]
[406527585,1771913439972,-624.27476501,0.00013188,2]
[406527586,1771913439982,-624.27476501,0.00013188,2]
[406527587,1771913439991,-624.27476501,0.00013188,2]
[406527588,1771913440001,-624.27476501,0.00013188,2]
[406527589,1771913440010,-624.27476501,0.00013188,2]
[406527590,1771913440020,-624.27476501,0.00013188,2]
[406527591,1771913440029,-624.27476501,0.00013188,2]
[406527592,1771913440039,-624.27476501,0.00013188,2]
[406527593,1771913440048,-624.274765,0.00013188,2]
[406527594,1771913440057,-624.274765,0.00013188,2]
[406527595,1771913440066,-624.274765,0.00013188,2]
[406527596,1771913440076,-624.274765,0.00013188,2]
[406527597,1771913440085,-624.274765,0.00013188,2]
[406527598,1771913440095,-624.274765,0.00013188,2]
[406527599,1771913440105,-624.274765,0.00013188,2]
[406527600,1771913440114,-624.274765,0.00013188,2]
[406527601,1771913440123,-624.274765,0.00013188,2]
[406527602,1771913440133,-624.274765,0.00013188,2]
[406527603,1771913440142,-624.274765,0.00013188,2]
[406527604,1771913440152,-624.274765,0.00013188,2]
[406527605,1771913440161,-624.274765,0.00013188,2]
[406527606,1771913440170,-624.274765,0.00013188,2]
[406527607,1771913440180,-624.274765,0.00013188,2]
[406527608,1771913440189,-624.274765,0.00013188,2]
[406527609,1771913440198,-624.274765,0.00013188,2]
[406527610,1771913440207,-624.274765,0.00013188,2]
[406527612,1771913440216,-624.274765,0.00013188,2]
[406527613,1771913440226,-624.274765,0.00013188,2]
[406527614,1771913440235,-624.274765,0.00013188,2]
[406527615,1771913440245,-624.274765,0.00013188,2]
[406527616,1771913440254,-624.274765,0.00013188,2]
[406527617,1771913440263,-624.274765,0.00013188,2]
[406527618,1771913440272,-624.274765,0.00013188,2]
[406527619,1771913440282,-624.274765,0.00013188,2]
[406527620,1771913440295,-624.274765,0.00013188,2]
[406527621,1771913440304,-624.274765,0.00013188,2]
[406527622,1771913440314,-624.274765,0.00013188,2]
[406527623,1771913440323,-624.274765,0.00013188,2]
[406527624,1771913440334,-624.274765,0.00013188,2]
[406527625,1771913440343,-259.96169612,0.00013188,2]
[406527626,1771913440353,-601.97923768,0.00013188,2]
[406527627,1771913440364,-601.97923768,0.00013188,2]
[406527628,1771913440373,-601.97923768,0.00013188,2]
[406527629,1771913440386,-601.97923768,0.00013188,2]
[406527630,1771913440395,-601.97923768,0.00013188,2]
[406527631,1771913440405,-601.97923768,0.00013188,2]
[406527632,1771913440414,-601.97923768,0.00013188,2]
[406527633,1771913440423,-601.97923768,0.00013188,2]
[406527634,1771913440432,-601.97923768,0.00013188,2]
[406527635,1771913440442,-601.97923768,0.00013188,2]
[406527636,1771913440452,-601.97923768,0.00013188,2]
[406527637,1771913440461,-601.97923768,0.00013188,2]
[406527638,1771913440471,-601.97923768,0.00013188,2]
[406527639,1771913440480,-208.03686315,0.00013188,2]
[406527640,1771913440490,-601.97923767,0.00013188,2]
[406527641,1771913440499,-371254.9785337,0.00013189,2]
[406527642,1771913440507,-500.0,0.00013212,2]
[406527643,1771913440517,-360.0,0.00013235,2]
[406527644,1771913440526,-216.0,0.00013262,2]
[406527645,1771913440535,-1151.19706606,0.00013306,2]
[406527646,1771913440544,-166.66,0.00013452,2]
[406527647,1771913440553,-500.0,0.00013485,2]
[406527648,1771913440562,-358.58270412,0.00013512,2]
[406527649,1771913440578,-500.0,0.00013599,2]
[406527650,1771913440587,-254.95687027,0.00013602,2]
[406527651,1771913440596,-6528.26201551,0.00013612,2]
[406527652,1771913440641,-4478.00151961,0.00013612,2]
[406527653,1771913440711,-751.60894131,0.00013612,2]
[406527654,1771913440723,-4478.00151961,0.00013612,2]
[406527655,1771913440737,-6150.06054469,0.00013612,2]
[406527656,1771913440747,-27555.96599931,0.00013612,2]
[406527657,1771913440756,-1000.0,0.00013621,2]
[406527658,1771913440765,-547.04532951,0.00013621,2]
[406527659,1771913440775,-1003.13992045,0.00013621,2]
[406527660,1771913440785,-500.44619551,0.00013621,2]
[406527661,1771913440794,-572.49316641,0.00013621,2]
[406527662,1771913440804,-294.26200516,0.00013621,2]
[406527663,1771913440813,-1000.0,0.00013621,2]
[406527664,1771913440823,-1000.0,0.00013621,2]
[406527665,1771913440832,-510.04817036,0.00013621,2]
[406527666,1771913440842,-545.1706455,0.00013621,2]
[406527667,1771913440851,-500.97567973,0.00013621,2]
[406527668,1771913440860,-229.14998056,0.00013621,2]
[406527669,1771913440869,-1004.64062165,0.00013621,2]
[406527670,1771913440878,-686.01457246,0.00013621,2]
[406527671,1771913440888,-506.38080207,0.00013621,2]
[406527672,1771913440897,-1000.0,0.00013621,2]
[406527673,1771913440907,-504.73673885,0.00013621,2]
[406527674,1771913440916,-1144.49133237,0.00013621,2]
[406527675,1771913440925,-204.76945981,0.00013621,2]
[406527676,1771913440935,-1012.45638108,0.00013621,2]
[406527677,1771913440945,-502.60687673,0.00013621,2]
[406527678,1771913440954,-1000.83875396,0.00013621,2]
[406527679,1771913440963,-500.0,0.00013698,2]
[406527680,1771913440973,-500.0,0.00013698,2]
[406527681,1771913440982,-500.0,0.00013698,2]
[406527682,1771913440991,-301.79248677,0.00013698,2]
[406527683,1771913441001,-500.0,0.00013698,2]
[406527684,1771913441011,-500.0,0.00013698,2]
[406527685,1771913441020,-500.0,0.00013698,2]
[406527686,1771913441030,-500.0,0.00013698,2]
[406527687,1771913441039,-500.0,0.00013698,2]
[406527688,1771913441049,-500.0,0.00013698,2]
[406527689,1771913441058,-500.0,0.00013698,2]
[406527690,1771913441068,-500.0,0.00013698,2]
[406527691,1771913441077,-500.0,0.00013698,2]
[406527692,1771913441085,-500.0,0.00013698,2]
[406527693,1771913441095,-500.0,0.00013698,2]
[406527694,1771913441104,-500.0,0.00013698,2]
[406527695,1771913441114,-500.0,0.00013698,2]
[406527696,1771913441125,-500.0,0.00013698,2]
[406527697,1771913441134,-501.77257617,0.00013698,2]
[406527698,1771913441143,-500.0,0.00013698,2]
[406527699,1771913441152,-500.0,0.00013698,2]
[406527700,1771913441161,-500.0,0.00013698,2]
[406527701,1771913441171,-500.0,0.00013698,2]
[406527702,1771913441180,-500.0,0.00013698,2]
[406527703,1771913441190,-500.0,0.00013698,2]
[406527704,1771913441199,-500.0,0.00013698,2]
[406527705,1771913441208,-500.0,0.00013698,2]
[406527706,1771913441217,-500.0,0.00013698,2]
[406527707,1771913441227,-500.0,0.00013698,2]
[406527708,1771913441237,-500.0,0.00013698,2]
[406527709,1771913441246,-500.0,0.00013698,2]
[406527710,1771913441255,-174.85786729,0.00013698,2]
[406527711,1771913441264,-500.0,0.00013698,2]
[406527712,1771913441273,-500.0,0.00013698,2]
[406527713,1771913441282,-500.0,0.00013698,2]
[406527714,1771913441294,-500.0,0.00013698,2]
[406527715,1771913441304,-500.0,0.00013698,2]
[406527716,1771913441313,-565.59384868,0.00013698,2]
[406527717,1771913441322,-500.0,0.00013698,2]
[406527718,1771913441332,-500.0,0.00013698,2]
[406527719,1771913441341,-500.0,0.00013698,2]
[406527720,1771913441351,-500.0,0.00013698,2]
[406527721,1771913441362,-500.0,0.00013698,2]
[406527722,1771913441371,-500.0,0.00013698,2]
[406527723,1771913441381,-500.0,0.00013698,2]
[406527724,1771913441390,-500.0,0.00013698,2]
[406527725,1771913441399,-500.0,0.00013698,2]
[406527726,1771913441408,-500.0,0.00013698,2]
[406527727,1771913441417,-500.0,0.00013698,2]
[406527728,1771913441427,-557.93,0.00013698,2]
[406527729,1771913441435,-500.0,0.00013698,2]
[406527730,1771913441445,-557.93,0.00013698,2]
[406527731,1771913441454,-500.0,0.00013698,2]
[406527732,1771913441464,-557.93,0.00013698,2]
[406527733,1771913441473,-500.0,0.00013698,2]
[406527734,1771913441482,-557.93,0.00013698,2]
[406527735,1771913441491,-500.0,0.00013698,2]
[406527736,1771913441500,-500.0,0.00013698,2]
[406527737,1771913441508,-557.93,0.00013698,2]
[406527738,1771913441517,-500.0,0.00013698,2]
[406527739,1771913441526,-557.93,0.00013698,2]
[406527740,1771913441536,-500.0,0.00013698,2]
[406527741,1771913441546,-557.93,0.00013698,2]
[406527742,1771913441555,-557.93,0.00013698,2]
[406527743,1771913441564,-557.93,0.00013698,2]
[406527744,1771913441573,-557.93,0.00013698,2]
[406527745,1771913441582,-557.93,0.00013698,2]
[406527746,1771913441592,-557.93,0.00013698,2]
[406527747,1771913441601,-557.93,0.00013698,2]
[406527748,1771913441611,-557.93,0.00013698,2]
[406527749,1771913441621,-557.93,0.00013698,2]
[406527750,1771913441630,-557.93,0.00013698,2]
[406527751,1771913441639,-557.93,0.00013698,2]
[406527752,1771913441649,-557.93,0.00013698,2]
[406527753,1771913441659,-557.93,0.00013698,2]
[406527754,1771913441668,-500.0,0.00013698,2]
[406527755,1771913441677,-500.0,0.00013698,2]
[406527756,1771913441687,-500.0,0.00013698,2]
[406527757,1771913441696,-500.0,0.00013698,2]
[406527758,1771913441706,-500.0,0.00013698,2]
[406527759,1771913441716,-500.0,0.00013698,2]
[406527760,1771913441726,-500.0,0.00013698,2]
[406527761,1771913441735,-500.0,0.00013698,2]
[406527762,1771913441745,-500.0,0.00013698,2]
[406527764,1771913441755,-500.0,0.00013698,2]
[406527765,1771913441764,-500.0,0.00013698,2]
[406527766,1771913441774,-500.0,0.00013698,2]
[406527767,1771913441785,-500.0,0.00013698,2]
[406527768,1771913441794,-500.0,0.00013698,2]
[406527769,1771913441803,-500.0,0.00013698,2]
[406527770,1771913441813,-500.0,0.00013698,2]
[406527771,1771913441823,-500.0,0.00013698,2]
[406527772,1771913441832,-500.0,0.00013698,2]
[406527773,1771913441841,-500.0,0.00013698,2]
[406527774,1771913441851,-500.0,0.00013698,2]
[406527775,1771913441861,-500.0,0.00013698,2]
[406527776,1771913441870,-500.0,0.00013698,2]
[406527777,1771913441879,-500.0,0.00013698,2]
[406527778,1771913441889,-500.0,0.00013698,2]
[406527779,1771913441898,-500.0,0.00013698,2]
[406527780,1771913441907,-500.0,0.00013698,2]
[406527781,1771913441916,-500.0,0.00013698,2]
[406527782,1771913441926,-500.0,0.00013698,2]
[406527783,1771913441935,-500.0,0.00013698,2]
[406527784,1771913441944,-500.0,0.00013698,2]
[406527785,1771913441954,-157.77016902,0.00013698,2]
[406527786,1771913441963,-500.0,0.00013698,2]
[406527787,1771913441973,-500.0,0.00013698,2]
[406527788,1771913441982,-500.0,0.00013698,2]
[406527789,1771913441991,-500.0,0.00013698,2]
[406527790,1771913442000,-500.0,0.00013698,2]
[406527791,1771913442010,-500.0,0.00013698,2]
[406527792,1771913442019,-500.0,0.00013698,2]
[406527793,1771913442028,-500.0,0.00013698,2]
[406527794,1771913442039,-500.0,0.00013698,2]
[406527795,1771913442048,-500.0,0.00013698,2]
[406527796,1771913442058,-500.0,0.00013698,2]
[406527797,1771913442067,-500.0,0.00013698,2]
[406527798,1771913442076,-500.0,0.00013698,2]
[406527799,1771913442086,-500.0,0.00013698,2]
[406527800,1771913442096,-500.0,0.00013698,2]
[406527801,1771913442105,-500.0,0.00013698,2]
[406527802,1771913442114,-500.0,0.00013698,2]
[406527803,1771913442123,-500.0,0.00013698,2]
[406527804,1771913442132,-500.0,0.00013698,2]
[406527805,1771913442142,-500.0,0.00013698,2]
[406527806,1771913442151,-500.0,0.00013698,2]
[406527807,1771913442160,-510.28250517,0.00013698,2]
[406527808,1771913442169,-500.0,0.00013698,2]
[406527809,1771913442179,-329.04605058,0.00013698,2]
[406527811,1771913442188,-500.0,0.00013698,2]
[406527812,1771913442197,-500.0,0.00013698,2]
[406527813,1771913442207,-500.0,0.00013698,2]
[406527814,1771913442216,-500.0,0.00013698,2]
[406527815,1771913442225,-500.0,0.00013698,2]
[406527816,1771913442234,-502.43319392,0.00013698,2]
[406527817,1771913442243,-189.90244216,0.00013698,2]
[406527818,1771913442251,-500.0,0.00013698,2]
[406527819,1771913442260,-500.0,0.00013698,2]
[406527820,1771913442271,-500.0,0.00013698,2]
[406527821,1771913442282,-500.0,0.00013698,2]
[406527822,1771913442297,-500.0,0.00013698,2]
[406527823,1771913442307,-500.0,0.00013698,2]
[406527824,1771913442316,-500.0,0.00013698,2]
[406527825,1771913442326,-500.0,0.00013698,2]
[406527826,1771913442337,-500.0,0.00013698,2]
[406527827,1771913442346,-500.0,0.00013698,2]
[406527828,1771913442360,-500.0,0.00013698,2]
[406527829,1771913442369,-500.0,0.00013698,2]
[406527830,1771913442378,-500.0,0.00013698,2]
[406527831,1771913442387,-500.0,0.00013698,2]
[406527832,1771913442397,-500.0,0.00013698,2]
[406527833,1771913442406,-500.0,0.00013698,2]
[406527834,1771913442415,-500.0,0.00013698,2]
[406527835,1771913442424,-500.0,0.00013698,2]
[406527836,1771913442434,-500.0,0.00013698,2]
[406527837,1771913442443,-500.0,0.00013698,2]
[406527838,1771913442452,-500.0,0.00013698,2]
[406527839,1771913442462,-500.0,0.00013698,2]
[406527840,1771913442471,-500.0,0.00013698,2]
[406527841,1771913442480,-500.0,0.00013698,2]
[406527842,1771913442489,-500.0,0.00013698,2]
[406527843,1771913442498,-500.0,0.00013698,2]
[406527844,1771913442507,-500.0,0.00013698,2]
[406527845,1771913442517,-500.0,0.00013698,2]
[406527846,1771913442526,-500.0,0.00013698,2]
[406527847,1771913442537,-500.0,0.00013698,2]
[406527848,1771913442547,-286.16513184,0.00013698,2]